bitfinex-derivatives/quotes_BTCF0:USTF0_20241003
["timestamp","ask_amount","ask_price","bid_price","bid_amount"]
[1727952501377,0.274054,60944.0,60943.0,0.11447591]
[1727952501679,0.272054,60944.0,60943.0,0.11647591]
[1727952502474,0.354112,60944.0,60943.0,0.19748922]
[1727952502981,0.354112,60944.0,60943.0,0.11543322]
[1727952503382,0.354112,60944.0,60943.0,0.001]
[1727952503974,0.354112,60944.0,60932.0,0.04879558]
[1727952503975,0.19,60944.0,60939.0,0.08206]
[1727952504170,0.11125816,60956.0,60939.0,0.08206]
[1727952504171,0.27206,60940.0,60939.0,0.08206]
[1727952504970,0.27206,60940.0,60939.0,0.08606]
[1727952505176,0.27206,60940.0,60939.0,0.08806]
[1727952505670,0.27206,60940.0,60939.0,0.08606]
[1727952506978,0.27206,60940.0,60939.0,0.08406]
[1727952507585,0.27206,60940.0,60939.0,0.002]
[1727952508087,0.27206,60940.0,60931.0,0.0038]
[1727952508088,0.082071,60932.0,60931.0,0.0038]
[1727952508296,0.082071,60932.0,60928.0,0.082074]
[1727952508297,0.082078,60929.0,60928.0,0.082074]
[1727952508488,0.272078,60929.0,60928.0,0.082074]
[1727952510575,0.082079,60927.0,60926.0,0.082078]
[1727952511575,0.082079,60927.0,60926.0,0.19695044]
[1727952511989,0.083079,60927.0,60926.0,0.20895044]
[1727952512193,0.084079,60927.0,60926.0,0.22295044]
[1727952514191,0.084079,60927.0,60926.0,0.32053959]
[1727952514386,0.084079,60927.0,60926.0,0.22295044]
[1727952516494,0.0266006,60927.0,60926.0,0.22295044]
[1727952516693,0.002,60927.0,60926.0,0.22295044]
[1727952516893,0.084079,60927.0,60926.0,0.22295044]
[1727952517400,0.084079,60927.0,60926.0,0.14087244]
[1727952517998,0.084079,60927.0,60926.0,0.14003491]
[1727952518903,0.274079,60927.0,60926.0,0.14003491]
[1727952519090,0.274079,60927.0,60926.0,0.22137023]
[1727952520488,0.274079,60927.0,60926.0,0.026]
[1727952521294,0.274079,60927.0,60926.0,0.09107439]
[1727952521496,0.274079,60927.0,60926.0,0.026]
[1727952522099,0.274079,60927.0,60926.0,0.07479724]
[1727952522806,0.274079,60927.0,60926.0,0.026]
[1727952526693,0.274079,60927.0,60926.0,0.07479083]
[1727952526898,0.274079,60927.0,60926.0,0.026]
[1727952527100,0.23301262,60927.0,60926.0,0.07479083]
[1727952528599,0.23301262,60927.0,60926.0,0.026]
[1727952528897,0.23301262,60927.0,60926.0,0.07479083]
[1727952529099,0.23301262,60927.0,60926.0,0.026]
[1727952529804,0.59381262,60927.0,60926.0,0.026]
[1727952530007,0.59381262,60927.0,60926.0,0.07479083]
[1727952532403,0.59381262,60927.0,60926.0,0.026]
[1727952532812,0.40381262,60927.0,60926.0,0.108079]
[1727952533207,0.40381262,60927.0,60926.0,0.17315339]
[1727952534309,0.40381262,60927.0,60926.0,0.108079]
[1727952534605,0.04301262,60927.0,60926.0,0.108079]
[1727952534812,0.2416,60930.0,60926.0,0.10733532]
[1727952535002,0.082071,60932.0,60931.0,0.082072]
[1727952535202,0.082067,60935.0,60934.0,0.082065]
[1727952535615,0.082067,60935.0,60934.0,0.27715645]
[1727952535916,0.082067,60935.0,60934.0,0.082065]
[1727952536215,0.082067,60935.0,60934.0,0.27721765]
[1727952536912,0.0999,60938.0,60934.0,0.19515265]
[1727952537104,0.0999,60938.0,60937.0,0.082064]
[1727952537105,0.132663,60938.0,60937.0,0.082064]
[1727952538313,0.132663,60938.0,60936.0,0.08132484]
[1727952538314,0.082064,60937.0,60936.0,0.08132484]
[1727952538517,0.082064,60937.0,60936.0,0.19515248]
[1727952538911,0.082064,60937.0,60936.0,0.27721748]
[1727952539613,0.082064,60937.0,60936.0,0.19515248]
[1727952539913,0.082064,60937.0,60936.0,0.003]
[1727952540214,0.082064,60937.0,60936.0,0.008]
[1727952540616,0.082064,60937.0,60936.0,0.090065]
[1727952541216,0.082064,60937.0,60936.0,0.20386782]
[1727952541516,0.082064,60937.0,60936.0,0.090065]
[1727952543718,0.082064,60937.0,60936.0,0.008]
[1727952545121,0.082064,60937.0,60936.0,0.090065]
[1727952546113,0.19,60939.0,60938.0,0.082062]
[1727952546315,0.272061,60939.0,60938.0,0.082062]
[1727952546511,0.082058,60942.0,60941.0,0.082057]
[1727952548123,0.084058,60942.0,60941.0,0.082057]
[1727952548329,0.002,60942.0,60941.0,0.082057]
[1727952548823,0.002,60942.0,60941.0,0.11206206]
[1727952549131,0.633855,60944.0,60941.0,0.03000506]
[1727952549425,0.632855,60944.0,60943.0,0.14707812]
[1727952550422,0.272055,60944.0,60943.0,0.14707812]
[1727952550719,0.274055,60944.0,60943.0,0.082056]
[1727952551220,0.272055,60944.0,60943.0,0.082056]
[1727952551418,0.276055,60944.0,60943.0,0.082056]
[1727952551818,0.004,60944.0,60943.0,0.082056]
[1727952552014,0.004,60944.0,60943.0,1.55898423]
[1727952552215,0.0038,60952.0,60951.0,0.082045]
[1727952552428,0.0495,60964.0,60951.0,0.082045]
[1727952552429,0.0038,60960.0,60959.0,0.082034]
[1727952552724,0.0495,60964.0,60960.0,0.082033]
[1727952552725,0.082028,60964.0,60960.0,0.082033]
[1727952553022,0.082028,60964.0,60963.0,0.082028]
[1727952553230,0.082028,60964.0,60961.0,0.06492479]
[1727952553420,0.08203,60962.0,60961.0,0.06492479]
[1727952553725,0.082028,60964.0,60960.0,0.14695779]
[1727952553726,0.082031,60961.0,60960.0,0.14695779]
[1727952553921,0.082031,60961.0,60960.0,0.14795779]
[1727952554118,0.093028,60964.0,60963.0,0.082029]
[1727952554432,0.082028,60964.0,60963.0,0.082029]
[1727952555017,0.090028,60964.0,60963.0,0.083029]
[1727952555223,0.090028,60964.0,60963.0,0.13162527]
[1727952555419,0.090028,60964.0,60963.0,0.04959627]
[1727952555616,0.08203,60962.0,60961.0,0.08262727]
[1727952556621,0.001,60964.0,60963.0,0.082029]
[1727952557929,0.083027,60964.0,60963.0,0.082029]
[1727952558129,0.082027,60964.0,60963.0,0.082029]
[1727952559021,0.082027,60964.0,60963.0,0.087029]
[1727952559628,0.082027,60964.0,60963.0,0.082029]
[1727952559840,0.082027,60964.0,60963.0,0.088029]
[1727952560832,0.082027,60964.0,60963.0,0.087029]
[1727952561221,0.082027,60964.0,60963.0,0.082029]
[1727952561426,0.082027,60964.0,60963.0,0.085029]
[1727952561830,0.082027,60964.0,60963.0,0.086029]
[1727952562032,0.082027,60964.0,60963.0,0.087029]
[1727952562937,0.082027,60964.0,60963.0,0.086029]
[1727952564132,0.082027,60964.0,60963.0,0.087029]
[1727952564330,0.0481,60965.0,60964.0,0.082027]
[1727952564529,0.00626087,60973.0,60965.0,0.082026]
[1727952564731,0.00246087,60973.0,60972.0,0.082017]
[1727952566521,0.00246087,60973.0,60968.0,0.0499]
[1727952566522,0.082022,60969.0,60968.0,0.082022]
[1727952566838,0.082026,60965.0,60964.0,0.003]
[1727952567132,0.272026,60965.0,60964.0,0.003]
[1727952567336,0.082029,60963.0,60962.0,0.082029]
[1727952567829,0.082029,60963.0,60962.0,0.11085628]
[1727952568935,0.082029,60963.0,60962.0,0.11485628]
[1727952571940,0.082029,60963.0,60962.0,0.11185628]
[1727952572141,0.082029,60963.0,60962.0,0.11485628]
[1727952573240,0.082029,60963.0,60962.0,0.03282728]
[1727952573931,0.082029,60963.0,60962.0,0.11485728]
[1727952574330,0.082029,60963.0,60962.0,0.11285728]
[1727952575141,0.083029,60963.0,60962.0,0.11285728]
[1727952575536,0.082029,60963.0,60962.0,0.11285728]
[1727952575741,0.082029,60963.0,60962.0,0.03082728]
[1727952577339,0.082029,60963.0,60962.0,0.02882728]
[1727952577547,0.082029,60963.0,60962.0,0.002]
[1727952577849,0.086029,60963.0,60962.0,0.002]
[1727952578139,0.11923495,60963.0,60960.0,0.082033]
[1727952578345,0.272031,60961.0,60960.0,0.082033]
[1727952578740,0.272031,60961.0,60960.0,0.11115779]
[1727952580235,0.272031,60961.0,60960.0,0.1760308]
[1727952580442,0.274031,60961.0,60960.0,0.1760308]
[1727952581141,0.274031,60961.0,60960.0,0.11115779]
[1727952581651,0.274031,60961.0,60960.0,0.11215779]
[1727952582054,0.273031,60961.0,60960.0,0.11215779]
[1727952584036,0.273031,60961.0,60960.0,0.02912479]
[1727952584346,0.082033,60960.0,60959.0,0.0811674]
[1727952584553,0.082033,60960.0,60959.0,0.19231906]
[1727952584755,0.082033,60960.0,60959.0,0.11115166]
[1727952585448,0.082033,60960.0,60959.0,0.02911766]
[1727952585755,0.082033,60960.0,60958.0,0.3608]
[1727952585756,0.082034,60959.0,60958.0,0.3608]
[1727952587247,0.082034,60959.0,60958.0,0.39070956]
[1727952588154,0.082034,60959.0,60958.0,0.45578581]
[1727952588546,0.084034,60959.0,60958.0,0.09498581]
[1727952588751,0.082037,60957.0,60956.0,0.06507625]
[1727952589058,0.272037,60957.0,60956.0,0.06507625]
[1727952589354,0.082038,60956.0,60955.0,0.06507625]
[1727952589560,0.234238,60956.0,60955.0,0.06507625]
[1727952589857,0.234238,60956.0,60955.0,0.14711625]
[1727952590258,0.234238,60956.0,60955.0,0.08204]
[1727952590847,0.08204,60955.0,60954.0,0.06507625]
[1727952591351,0.082041,60954.0,60953.0,0.17673723]
[1727952592763,0.085041,60954.0,60953.0,0.17673723]
[1727952592952,0.085041,60954.0,60953.0,0.11166098]
[1727952593149,0.086041,60954.0,60953.0,0.11166098]
[1727952594249,0.085041,60954.0,60953.0,0.11166098]
[1727952594751,0.083041,60954.0,60953.0,0.11266098]
[1727952594945,0.00084,60962.0,60958.0,0.082031]
[1727952595256,0.00096001,60969.0,60968.0,0.082022]
[1727952595451,0.36164,60975.0,60967.0,0.19]
[1727952595452,0.3608,60975.0,60967.0,0.19]
[1727952595658,0.082014,60974.0,60972.0,0.272017]
[1727952595851,0.3608,60975.0,60972.0,0.082017]
[1727952595852,0.03603835,60973.0,60972.0,0.082017]
[1727952596762,0.03603835,60973.0,60968.0,0.001]
[1727952596763,0.22603835,60973.0,60968.0,0.001]
[1727952596962,0.082021,60969.0,60968.0,0.001]
[1727952597858,0.272021,60969.0,60968.0,0.02933604]
[1727952598158,0.272021,60969.0,60966.0,0.082024]
[1727952598362,0.277021,60969.0,60967.0,0.082023]
[1727952598862,0.280021,60969.0,60967.0,0.082023]
[1727952599565,0.082022,60968.0,60967.0,0.082023]
[1727952600461,0.005,60969.0,60968.0,0.082022]
[1727952600663,0.005,60969.0,60968.0,0.442822]
[1727952600971,0.002,60969.0,60968.0,0.934862]
[1727952601470,0.08202,60970.0,60968.0,0.85284]
[1727952601765,0.08202,60970.0,60969.0,0.082021]
[1727952601967,0.08447687,60973.0,60968.0,0.3608]
[1727952601968,0.00246087,60973.0,60968.0,0.3608]
[1727952602167,0.082018,60972.0,60971.0,0.082018]
[1727952602560,0.00246087,60973.0,60968.0,0.3608]
[1727952602769,0.08447687,60973.0,60968.0,0.3608]
[1727952603079,0.08447687,60973.0,60972.0,0.082017]
[1727952603254,0.08747687,60973.0,60972.0,0.082017]
[1727952604161,0.00546087,60973.0,60972.0,0.082017]
[1727952604760,0.01446087,60973.0,60972.0,0.083017]
[1727952605752,0.012,60973.0,60972.0,0.083017]
[1727952605952,0.012,60973.0,60972.0,0.11243652]
[1727952606466,0.014,60973.0,60972.0,0.11343652]
[1727952608661,0.014,60973.0,60972.0,0.47423652]
[1727952608859,0.16132151,60973.0,60972.0,0.47423652]
[1727952609058,0.28571302,60973.0,60972.0,0.47423652]
[1727952610267,0.13839151,60973.0,60972.0,0.47423652]
[1727952611268,0.13839151,60973.0,60972.0,0.42496545]
[1727952611762,0.16098443,60973.0,60972.0,0.45377272]
[1727952611967,0.19488339,60973.0,60972.0,0.45377272]
[1727952612166,0.07405662,60973.0,60972.0,1.54581272]
[1727952612365,0.14698443,60980.0,60975.0,0.082013]
[1727952612668,0.14698443,60981.0,60980.0,0.082006]
[1727952612878,0.14698443,60983.0,60982.0,0.082003]
[1727952613459,0.14698443,60984.0,60983.0,0.082002]
[1727952613873,0.05026018,60986.0,60981.0,0.082005]
[1727952614077,0.13225918,60986.0,60985.0,0.081999]
[1727952614466,0.13225918,60986.0,60982.0,0.001]
[1727952614467,0.48594974,60986.0,60982.0,0.082002]
[1727952614667,0.19,60983.0,60977.0,0.0038]
[1727952614868,0.082014,60975.0,60974.0,0.082013]
[1727952615071,0.272014,60975.0,60974.0,0.082013]
[1727952615661,0.19,60975.0,60974.0,0.082013]
[1727952616064,0.14688287,60975.0,60974.0,0.082013]
[1727952616467,0.082013,60975.0,60974.0,0.082013]
[1727952617269,0.082013,60975.0,60974.0,0.083013]
[1727952617470,0.084013,60975.0,60974.0,0.083013]
[1727952617769,0.084013,60975.0,60974.0,0.084013]
[1727952621187,0.002,60975.0,60974.0,0.084013]
[1727952622184,0.180613,60975.0,60974.0,0.084013]
[1727952623786,0.13958459,60975.0,60974.0,0.14908925]
[1727952624188,0.13958459,60975.0,60974.0,0.084013]
[1727952626177,0.13958459,60975.0,60974.0,0.27848235]
[1727952626485,0.13958459,60975.0,60974.0,0.1651804]
[1727952626679,0.13958459,60975.0,60974.0,0.084013]
[1727952627082,0.13958459,60975.0,60974.0,0.002]
[1727952627272,0.32958459,60975.0,60974.0,0.002]
[1727952627585,0.32958459,60975.0,60974.0,0.1965384]
[1727952628083,0.32958459,60975.0,60974.0,0.19648245]
[1727952628291,0.13958459,60975.0,60974.0,0.19732905]
[1727952630484,0.13958459,60975.0,60974.0,0.19741826]
[1727952631784,0.21181419,60975.0,60974.0,0.084014]
[1727952633876,0.12980119,60975.0,60974.0,0.084014]
[1727952634089,0.08964246,60975.0,60974.0,0.084014]
[1727952634890,0.08137087,60975.0,60974.0,0.084014]
[1727952635091,0.08149838,60975.0,60974.0,0.084014]
[1727952636381,0.16351138,60975.0,60974.0,0.084014]
[1727952636581,0.16351138,60975.0,60974.0,0.002]
[1727952636790,0.20367081,60975.0,60974.0,0.002]
[1727952637088,0.25400812,60975.0,60974.0,0.002]
[1727952638192,0.20367081,60975.0,60974.0,0.002]
[1727952638587,0.08149838,60975.0,60974.0,0.002]
[1727952638892,0.082001,60984.0,60974.0,0.74290465]
[1727952639092,0.0521,60985.0,60981.0,0.19]
[1727952639301,0.0517,60990.0,60989.0,0.081994]
[1727952639599,0.0517,60990.0,60989.0,0.38163566]
[1727952639792,0.0517,60990.0,60989.0,1.33163566]
[1727952639986,0.0517,60990.0,60989.0,0.38163566]
[1727952640696,0.0517,60990.0,60989.0,0.74343566]
[1727952640992,0.0489,60993.0,60992.0,0.08199]
[1727952641196,0.0489,60993.0,60992.0,0.27606978]
[1727952641397,0.0521,60995.0,60994.0,0.081987]
[1727952643295,0.081988,60993.0,60992.0,0.001]
[1727952643494,0.271988,60993.0,60992.0,0.001]
[1727952644393,0.271988,60993.0,60990.0,0.02938347]
[1727952644394,0.081991,60991.0,60990.0,0.02938347]
[1727952644592,0.081991,60991.0,60986.0,0.08116035]
[1727952644797,0.0515,60990.0,60986.0,0.08116035]
[1727952645303,0.0515,60990.0,60987.0,0.08116035]
[1727952645500,0.0515,60990.0,60986.0,0.08116035]
[1727952646299,0.085991,60991.0,60990.0,0.001]
[1727952646890,0.03216683,60991.0,60984.0,0.39072128]
[1727952647095,0.271995,60988.0,60986.0,0.001]
[1727952647395,0.03216683,60987.0,60986.0,0.002]
[1727952647796,0.03216683,60987.0,60984.0,0.39072128]
[1727952647993,0.03216683,60986.0,60984.0,0.39072128]
[1727952648297,0.03216683,60985.0,60984.0,0.39072128]
[1727952650297,0.03216683,60985.0,60984.0,0.39172128]
[1727952650996,0.03616683,60985.0,60984.0,0.39172128]
[1727952651187,0.03616683,60985.0,60984.0,0.47372228]
[1727952652395,0.03616683,60985.0,60984.0,1.56564228]
[1727952653208,0.03584726,60985.0,60984.0,1.56564228]
[1727952654000,0.004,60985.0,60984.0,1.67896467]
[1727952654807,0.004,60985.0,60984.0,2.62896467]
[1727952656006,0.004,60985.0,60984.0,1.53704467]
[1727952656199,0.004,60985.0,60984.0,1.89785999]
[1727952656798,0.18338,61000.0,60997.0,0.081983]
[1727952656996,0.18338,61000.0,60994.0,0.081986]
[1727952656997,0.1014,61000.0,60994.0,0.081986]
[1727952657192,0.1014,61000.0,60992.0,0.08199]
[1727952657193,0.081985,60996.0,60992.0,0.08199]
[1727952658897,0.081985,60996.0,60992.0,0.08299]
[1727952659503,0.081985,60996.0,60992.0,0.08399]
[1727952660409,0.081988,60994.0,60992.0,0.08399]
[1727952661609,0.081985,60996.0,60992.0,0.08299]
[1727952661812,0.081985,60996.0,60992.0,0.08399]
[1727952662002,0.30219954,60995.0,60992.0,0.05233705]
[1727952662208,0.20412692,60994.0,60992.0,0.05233705]
[1727952662408,0.12213992,60993.0,60992.0,0.05233705]
[1727952662605,0.12213992,60993.0,60992.0,0.05133705]
[1727952662905,0.12213992,60993.0,60992.0,0.05233705]
[1727952663408,0.12213992,60993.0,60992.0,0.08100783]
[1727952663708,0.12213992,60993.0,60992.0,0.08200783]
[1727952663904,0.08199188,60993.0,60992.0,0.08200783]
[1727952664106,0.12213992,60993.0,60992.0,0.08200783]
[1727952665002,0.12213992,60993.0,60992.0,0.08100783]
[1727952665202,0.12213992,60993.0,60992.0,0.08200783]
[1727952665706,0.39412852,60993.0,60992.0,0.03167078]
[1727952668396,0.39412852,60993.0,60992.0,0.11366078]
[1727952669011,0.39412852,60993.0,60992.0,0.19469928]
[1727952669012,0.271988,60993.0,60992.0,0.19469928]
[1727952669409,0.0409708,60993.0,60992.0,0.30857819]
[1727952670101,0.081984,60996.0,60994.0,0.081986]
[1727952670316,0.081984,60996.0,60995.0,0.081986]
[1727952670808,0.081987,60995.0,60992.0,0.19469928]
[1727952671110,0.081987,60995.0,60994.0,0.001]
[1727952672403,0.081987,60995.0,60994.0,0.002]
[1727952672814,0.081987,60995.0,60994.0,0.001]
[1727952673210,0.081987,60995.0,60992.0,0.11070928]
[1727952673211,0.081988,60993.0,60992.0,0.11070928]
[1727952673408,0.271988,60993.0,60992.0,0.22418284]
[1727952674507,0.271988,60993.0,60992.0,0.22518284]
[1727952674703,0.271988,60993.0,60992.0,0.22517759]
[1727952675400,0.271988,60993.0,60992.0,0.22617759]
[1727952675904,0.271988,60993.0,60992.0,0.03167078]
[1727952676517,0.271988,60993.0,60989.0,0.04874958]
[1727952676702,0.081995,60988.0,60987.0,0.3608]
[1727952676903,0.271995,60988.0,60987.0,0.3608]
[1727952677204,0.271995,60988.0,60984.0,0.13074958]
[1727952677408,0.082001,60984.0,60983.0,0.04874958]
[1727952677601,0.082001,60984.0,60980.0,0.40954958]
[1727952677602,0.082005,60981.0,60980.0,0.40954958]
[1727952678402,0.082005,60981.0,60980.0,0.3608]
[1727952679115,0.082006,60980.0,60979.0,0.00245944]
[1727952679308,0.082011,60976.0,60974.0,0.04874958]
[1727952679613,0.082011,60976.0,60973.0,0.03283088]
[1727952679614,0.082014,60974.0,60973.0,0.082015]
[1727952679816,0.3608,60981.0,60980.0,0.082006]
[1727952680015,0.3628,60981.0,60980.0,0.272006]
[1727952680417,0.3628,60981.0,60980.0,1.222006]
[1727952680611,0.3628,60981.0,60980.0,1.032006]
[1727952680812,0.3628,60981.0,60980.0,0.082006]
[1727952681119,0.3648,60981.0,60980.0,0.082006]
[1727952681307,0.3648,60981.0,60979.0,0.04870289]
[1727952681507,0.3648,60981.0,60980.0,0.082006]
[1727952681712,0.3648,60981.0,60978.0,0.04970289]
[1727952681913,0.082006,60980.0,60979.0,0.082007]
[1727952682216,0.082008,60979.0,60977.0,0.13071189]
[1727952682520,0.082008,60979.0,60978.0,0.082009]
[1727952683715,0.082008,60979.0,60978.0,0.442809]
[1727952684617,0.082004,60982.0,60979.0,0.082007]
[1727952684824,0.0521,60984.0,60978.0,0.3608]
[1727952685116,0.081998,60987.0,60985.0,0.081998]
[1727952685316,0.081998,60986.0,60985.0,0.081998]
[1727952685920,0.082,60985.0,60982.0,0.082003]
[1727952686130,0.082,60985.0,60982.0,0.082002]
[1727952686616,0.082006,60981.0,60979.0,0.082007]
[1727952686816,0.272006,60980.0,60979.0,0.082007]
[1727952687322,0.082007,60979.0,60978.0,0.3608]
[1727952687513,0.082007,60979.0,60972.0,0.39397054]
[1727952687826,0.272012,60976.0,60975.0,0.082013]
[1727952688019,0.082015,60973.0,60972.0,0.39017054]
[1727952688221,0.082015,60973.0,60972.0,0.41580902]
[1727952688624,0.082015,60973.0,60972.0,0.39017054]
[1727952688925,0.082015,60973.0,60972.0,0.39317054]
[1727952689630,0.082015,60973.0,60972.0,0.47718754]
[1727952689815,0.082015,60973.0,60972.0,0.39517054]
[1727952690017,0.082015,60973.0,60972.0,0.3658]
[1727952690423,0.082015,60973.0,60972.0,0.3638]
[1727952690921,0.082015,60973.0,60972.0,0.445817]
[1727952691122,0.082015,60973.0,60972.0,0.5268555]
[1727952691312,0.0497,60975.0,60972.0,0.5268555]
[1727952691514,0.0497,60978.0,60972.0,0.5268555]
[1727952691515,0.082009,60978.0,60977.0,0.082008]
[1727952692024,0.082011,60977.0,60976.0,0.0810385]
[1727952692339,0.19,60980.0,60975.0,0.0810385]
[1727952692627,0.082006,60980.0,60979.0,0.06480768]
[1727952693022,0.082011,60976.0,60975.0,0.1630505]
[1727952693424,0.082011,60976.0,60975.0,0.082012]
[1727952693618,0.082011,60976.0,60974.0,0.0810385]
[1727952693619,0.082013,60975.0,60974.0,0.0810385]
[1727952693826,0.082013,60975.0,60974.0,0.19493929]
[1727952694027,0.082013,60975.0,60973.0,0.1630525]
[1727952694227,0.082013,60975.0,60973.0,0.0810385]
[1727952694431,0.082013,60975.0,60974.0,0.082014]
[1727952695723,0.082013,60975.0,60974.0,0.089014]
[1727952696417,0.082013,60975.0,60974.0,0.007]
[1727952696618,0.082013,60975.0,60974.0,0.003]
[1727952696818,0.082013,60975.0,60974.0,0.085014]
[1727952697020,0.082013,60975.0,60974.0,0.27989514]
[1727952697219,0.083013,60975.0,60974.0,0.27689514]
[1727952697518,0.083013,60975.0,60974.0,0.27689676]
[1727952697723,0.001,60975.0,60974.0,0.27689676]
[1727952698529,0.083013,60975.0,60974.0,0.27689676]
[1727952698914,0.083013,60975.0,60974.0,0.082014]
[1727952698915,0.11468664,60975.0,60974.0,0.082014]
[1727952699723,0.03267364,60975.0,60972.0,0.3608]
[1727952699923,0.082015,60973.0,60972.0,0.442816]
[1727952700525,0.082015,60973.0,60972.0,0.3608]
[1727952700730,0.11368894,60973.0,60972.0,0.3608]
[1727952701342,0.11368894,60973.0,60972.0,0.3618]
[1727952701637,0.11368894,60973.0,60972.0,0.3638]
[1727952702131,0.11368894,60973.0,60972.0,0.3618]
[1727952702324,0.11368894,60973.0,60972.0,0.3638]
[1727952706250,0.082015,60973.0,60972.0,0.47786432]
[1727952706425,0.082015,60973.0,60972.0,0.61386788]
[1727952707932,0.082015,60973.0,60972.0,0.47786432]
[1727952710931,0.082015,60973.0,60972.0,0.57524671]
[1727952711137,0.082015,60973.0,60972.0,0.47786432]
[1727952711335,0.082015,60973.0,60972.0,0.57524869]
[1727952711742,0.082015,60973.0,60972.0,0.6134481]
[1727952713944,0.082015,60973.0,60972.0,0.47786432]
[1727952714136,1.174055,60973.0,60972.0,0.04306432]
[1727952714442,1.13302933,60973.0,60972.0,0.08117422]
[1727952714635,0.082021,60969.0,60968.0,0.0038]
[1727952714837,0.082021,60969.0,60967.0,0.09739944]
[1727952714838,0.082022,60968.0,60967.0,0.09739944]
[1727952715047,0.082023,60967.0,60966.0,0.09739944]
[1727952715340,0.272023,60967.0,60966.0,0.09742171]
[1727952715646,0.272023,60967.0,60960.0,0.0038]
[1727952715647,0.272023,60967.0,60963.0,0.09742171]
[1727952715935,0.272027,60964.0,60963.0,0.09742171]
[1727952716642,0.082029,60963.0,60962.0,0.09742171]
[1727952716842,0.316929,60963.0,60962.0,0.09742171]
[1727952717143,0.08203,60962.0,60961.0,0.082031]
[1727952718539,0.08203,60962.0,60961.0,0.094031]
[1727952719443,0.08203,60962.0,60961.0,0.107031]
[1727952720144,0.08203,60962.0,60961.0,0.13267294]
[1727952722941,0.08203,60962.0,60961.0,0.107031]
[1727952723151,0.08203,60962.0,60961.0,0.13267288]
[1727952724941,0.082028,60965.0,60964.0,0.082027]
[1727952726040,0.082028,60965.0,60964.0,0.092027]
[1727952727652,0.082028,60965.0,60964.0,0.019]
[1727952728448,0.082028,60965.0,60954.0,0.42575766]
[1727952728449,0.082036,60958.0,60957.0,0.00246025]
[1727952728745,0.082046,60950.0,60949.0,0.04871824]
[1727952728950,0.19,60950.0,60949.0,0.04876791]
[1727952729137,0.08332399,60950.0,60949.0,0.41949667]
[1727952729338,0.16536999,60950.0,60949.0,0.40195963]
[1727952730353,0.16536999,60950.0,60949.0,0.51573324]
[1727952730548,0.16536999,60950.0,60949.0,0.24632914]
[1727952731157,0.27330788,60950.0,60949.0,0.24632914]
[1727952731448,0.27430788,60950.0,60949.0,0.24632914]
[1727952731843,0.27830788,60950.0,60949.0,0.24632914]
[1727952732047,1.37050788,60950.0,60949.0,0.24632914]
[1727952733351,0.082048,60949.0,60948.0,0.06499336]
[1727952733555,0.19,60949.0,60948.0,0.24520892]
[1727952733853,0.272048,60949.0,60948.0,0.24520892]
[1727952734846,0.274048,60949.0,60948.0,0.24520892]
[1727952735443,0.192,60949.0,60947.0,0.04869739]
[1727952735648,0.272049,60948.0,60947.0,0.04869739]
[1727952736052,0.19,60948.0,60943.0,0.00246123]
[1727952736356,0.272054,60944.0,60943.0,0.00246123]
[1727952737159,0.002,60949.0,60943.0,0.00246123]
[1727952737348,0.08330888,60950.0,60949.0,0.082048]
[1727952738056,0.08205,60947.0,60946.0,0.082052]
[1727952738940,0.00426188,60950.0,60944.0,0.14099739]
[1727952739144,0.00226188,60950.0,60946.0,0.003]
[1727952739349,0.082048,60949.0,60946.0,0.085051]
[1727952739751,0.082048,60949.0,60947.0,0.08205]
[1727952740252,0.082048,60949.0,60946.0,0.005]
[1727952740456,0.00126188,60950.0,60949.0,0.082048]
[1727952741259,0.3608,60960.0,60959.0,0.082034]
[1727952741449,0.442833,60960.0,60959.0,0.082034]
[1727952741966,0.082036,60958.0,60954.0,0.19]
[1727952742356,0.3608,60960.0,60952.0,0.04869739]
[1727952742564,0.442833,60960.0,60953.0,0.95]
[1727952742860,0.082034,60959.0,60956.0,0.082037]
[1727952743162,0.082034,60959.0,60953.0,0.95]
[1727952743163,0.082034,60959.0,60957.0,0.082037]
[1727952743460,0.452673,60960.0,60958.0,0.082036]
[1727952743751,0.443833,60960.0,60959.0,0.082034]
[1727952743953,0.444833,60960.0,60959.0,0.082034]
[1727952744148,0.443833,60960.0,60959.0,0.082034]
[1727952744356,0.443833,60960.0,60959.0,0.13071595]
[1727952744555,0.442833,60960.0,60959.0,0.082034]
[1727952744751,0.442833,60960.0,60959.0,0.13072074]
[1727952745058,0.082033,60960.0,60959.0,0.13072074]
[1727952745558,0.082033,60960.0,60959.0,0.082034]
[1727952746154,0.082033,60960.0,60959.0,0.13072768]
[1727952746348,0.082033,60960.0,60959.0,0.13172768]
[1727952747067,0.083033,60960.0,60959.0,0.13173251]
[1727952747249,0.001,60960.0,60959.0,0.13373251]
[1727952747453,0.001,60960.0,60959.0,0.085034]
[1727952748561,0.082032,60961.0,60959.0,0.086034]
[1727952748777,0.082032,60961.0,60960.0,0.04871279]
[1727952749059,0.272032,60961.0,60960.0,0.04871279]
[1727952750067,0.272032,60961.0,60960.0,0.05071279]
[1727952750860,0.272032,60961.0,60960.0,0.04871279]
[1727952751062,0.272032,60961.0,60959.0,0.03207894]
[1727952751260,0.272032,60961.0,60960.0,0.082033]
[1727952751660,0.082032,60961.0,60960.0,0.082033]
[1727952751961,0.083032,60961.0,60960.0,0.082033]
[1727952752457,0.082032,60961.0,60960.0,0.082033]
[1727952752658,0.082032,60961.0,60960.0,0.084033]
[1727952753565,0.082032,60961.0,60960.0,0.085033]
[1727952753959,0.082032,60961.0,60960.0,0.084033]
[1727952754163,0.082032,60961.0,60960.0,0.086033]
[1727952754364,0.082032,60961.0,60960.0,0.085033]
[1727952754666,0.082032,60961.0,60960.0,0.084033]
[1727952754864,0.082032,60961.0,60960.0,0.002]
[1727952755064,0.272032,60961.0,60960.0,0.002]
[1727952755972,0.272032,60961.0,60960.0,0.004]
[1727952756666,0.272032,60961.0,60960.0,0.001]